Workbook

Sheet отчет 95 ОЗ 2017г
H3: ГОДОВОЙ ОТЧЕТ
C4: об использовании субсидии, предоставленной из областного бюджета Ленинградской области Скребловскому сельскому поселению Лужского муниципального района ЛО на реализацию проектов местных инициатив граждан в рамках подпрограммы «Создание условий для эффективного выполнения органами местного самоуправления своих полномочий» государственной программы Ленинградской области «Устойчивое общественное развитие в Ленинградской области» за 2017 год
B6: Код по бюджетной классификации бюджета, предостав-ляющего межбюджетный трансферт | C6: Код по классификации доходов бюджета, получающего межбюджетный трансферт | D6: Утверждено бюджетных назначений на 2017 год (областной и местный бюджет) | E6: Поступило средств областного бюджета | F6: Размер софинансирования из местного бюджета | G6: Расходы, подтвержденные документами и произведенные за счет средств областного бюджета | H6: Расходы, подтвержденные документами и произведенные за счет средств местного бюджета | I6: Неиспользо-ванный остаток межбюджетного трансферта, подлежащий возврату | J6: Наименование мероприятия | M6: Принятые бюджетные обязательства
M7: контрагент | N7: номер и дата договора | O7: наименование работ | P7: сумма договора | Q7: выполнено работ (сумма) | R7: номер, дата акта выпол-ненных работ | S7: Фактические показатели результативности использования субсидии
B8: 990 1403 663 03 70880 521 251 | C8: 011 202 02999 10 0000 151 | D8: =E8+F8 -> 64160.15 | E8: 57100 | F8: 7060.15 | G8: 57100 | H8: 7060.15 | I8: =E8-G8 -> 0 | J8: Замена светильников уличного освещения в д.Репьи: -по улице Центральная у часовни и у домов № 3,15, 25,35; - по улице Озерная у домов № 14, 22, 36, 46, 50,54 | M8: ООО "СТРОЙВЕКТОР" | N8: МК № 2017-4 от 26.05.17г. | O8: Замена светильников уличного освещения в д.Репьи: -по улице Центральная у часовни и у домов № 3,15, 25,35; - по улице Озерная у домов № 14, 22, 36, 46, 50,54 | P8: =D8 -> 64160.15 | Q8: =D8 -> 64160.15 | R8: Акт № ЛС4 (КС 2) от 29.05.17г Акт № ЛС5 (КС 2) от 29.05.17г. | S8: 11 шт.
D9: =E9+F9 -> 151651.27 | E9: 134900 | F9: 16751.27 | G9: 134900 | H9: 16751.27 | I9: =E9-G9 -> 0 | J9: .Замена светильников уличного освещения в д.Брод: -по улице Тополинная у домов № 6,12,16,20,23;- по улице Новая у домов № 2,10;-по улице Центральная у домов № 1,3,13,14,19,25,33,38;- по улице Тупиковая у дома № 12;- по улице Полевая у дома № 1 ;- на площади трех тополей у дома №1; по улице Чубаровская у домов № 3,22;- по Кузнецовкому переулку у дома № 6;- по улице Малобродской у домов № 3,7,13,17,23 | M9: ООО "СТРОЙВЕКТОР" | N9: МК № 2017-4 от 26.05.17г. | O9: .Замена светильников уличного освещения в д.Брод: -по улице Тополинная у домов № 6,12,16,20,23;- по улице Новая у домов № 2,10;-по улице Центральная у домов № 1,3,13,14,19,25,33,38;- по улице Тупиковая у дома № 12;- по улице Полевая у дома № 1 ;- на площади трех тополей у дома №1; по улице Чубаровская у домов № 3,22;- по Кузнецовкому переулку у дома № 6;- по улице Малобродской у домов № 3,7,13,17,23 | P9: =D9 -> 151651.27 | Q9: =P9 -> 151651.27 | R9: Акт № ЛС1 (КС 2) от 29.05.17г Акт № ЛС2 (КС 2) от 29.05.17г. Акт № ЛС3 (КС 2) от 29.05.17г. | S9: 26 шт.
B10: Итого по ООО "СТРОЙВЕКТОР" | D10: =SUM(D8:D9) -> 215811.42 | E10: =SUM(E8:E9) -> 192000 | F10: =SUM(F8:F9) -> 23811.42 | G10: =SUM(G8:G9) -> 192000 | H10: =SUM(H8:H9) -> 23811.42 | I10: 0 | P10: =SUM(P8:P9) -> 215811.42 | Q10: =SUM(Q8:Q9) -> 215811.42 | S10: 37
D11: =E11+F11 -> 65000 | E11: 52000 | F11: 13000 | G11: 52000 | H11: 13000 | I11: =E11-G11 -> 0 | J11: Установка фонарей уличного освещения в дер. Калгановка | M11: ИП Игнатьева Наталья Михайловна | N11: МК № 17-05-1 от 05.06.17г. | O11: Установка фонарей уличного освещения в дер. Калгановка | P11: =D11 -> 65000 | Q11: =D11 -> 65000 | R11: Акт № 8358 от 05.06.17г. | S11: 8шт.
D12: 88788.58 | E12: 59100 | F12: 29688.58 | G12: 59100 | H12: 14025 | I12: 0 | J12: Установка фонарей уличного освещения в дер. Раковичи | M12: ИП Игнатьева Наталья Михайловна | N12: МК № 17-05-2 от 06.06.17г. | O12: Установка фонарей уличного освещения в дер. Раковичи | P12: 73125 | Q12: =P12 -> 73125 | R12: Акт № 8359 от 06.06.17г. | S12: 9 шт.
B13: Итого по ИП Игнатьева Н.М. | D13: =SUM(D11:D12) -> 153788.58 | E13: =SUM(E11:E12) -> 111100 | F13: 42688.58 | G13: 111100 | H13: 27025 | I13: 0 | P13: =SUM(P11:P12) -> 138125 | Q13: =SUM(Q11:Q12) -> 138125 | S13: 17
B14: ВСЕГО по замене светильников | D14: =D10+D13 -> 369600 | E14: =E10+E13 -> 303100 | F14: 66500 | G14: 303100 | H14: 50836.42 | I14: 0 | P14: =P10+P13 -> 353936.42 | Q14: =Q10+Q13 -> 353936.42 | S14: 54
B15: 990 1403 663 03 70880 521 251 | C15: 011 202 02999 10 0000 151 | D15: =E15+F15 -> 259205.36 | E15: 230537.49 | F15: 28667.87 | G15: 230537.49 | H15: 28667.87 | I15: =E15-G15 -> 0 | J15: Ремонт участка дороги общего пользования местного значения в д.Домкино по ул.Низовская ( участок дороги от 1,473 км до 1,545 км) | M15: ООО "Вираж" | N15: МК № 2017-3 от 26.05.17г. | O15: Ремонт участка дороги общего пользования местного значения в д.Домкино по ул.Низовская ( участок дороги от 1,473 км до 1,545 км) | P15: =D15 -> 259205.36 | Q15: =P15 -> 259205.36 | R15: Акт №1/4 (КС 2) от 01.06.17г. | S15: 252,0 м.кв.
D16: 421238.74 | E16: 374650.14 | F16: 46588.6 | G16: 374650.14 | H16: 46588.6 | I16: =E16-G16 -> 0 | J16: Ремонт дворовой территории у многоквартирных домов № 1 и № 2 в пос. Межозерный | M16: ООО "Вираж" | N16: МК № 2017-3 от 26.05.17г. | O16: Ремонт дворовой территории у многоквартирных домов № 1 и № 2 в пос. Межозерный | P16: 421238.74 | Q16: 421238.74 | R16: Акт №1/2 (КС 2) от 02.06.17г. | S16: 508,2 м.кв.
D17: 172186.5 | E17: 153142.84 | F17: 19043.66 | G17: 153142.84 | H17: 19043.66 | I17: 0 | J17: Ремонт площадки у многоквартирного жилого дома № 1в пос. Межозерный | M17: ООО "Вираж" | N17: МК № 2017-3 от 26.05.17г. | O17: Ремонт площадки у многоквартирного жилого дома № 1в пос. Межозерный | P17: 172186.5 | Q17: 172186.5 | R17: Акт №1/3 (КС 2) от 02.06.17г. | S17: 171,2 м.кв.
D18: 409904.6 | E18: 364569.53 | F18: 45335.07 | G18: 364569.53 | H18: 45335.07 | I18: 0 | J18: Ремонт участка дороги общего пользования местного значения в д.Голубково по улице Луговая ( от начала улицы до 0,215 км) | M18: ООО "Вираж" | N18: МК № 2017-3 от 26.05.17г. | O18: Ремонт участка дороги общего пользования местного значения в д.Голубково по улице Луговая ( от начала улицы до 0,215 км) | P18: 409904.6 | Q18: 409904.6 | R18: Акт №1/1 (КС 2) от 02.06.17г. | S18: 1107,5м.кв.
B19: Итого по ООО Вираж | D19: =SUM(D15:D18) -> 1262535.2 | E19: =SUM(E15:E18) -> 1122900 | F19: =SUM(F15:F18) -> 139635.2 | G19: =SUM(G15:G18) -> 1122900 | H19: =SUM(H15:H18) -> 139635.2 | I19: 0 | P19: 1262535.2 | Q19: 1262535.2 | S19: 2038,9 м.кв.
D20: 96000 | E20: 45000 | F20: 51000 | G20: 45000 | H20: 51000 | I20: 0 | J20: .Ремонт участка дороги общего пользования местного значения в д.Калгановка по улице Липовая аллея | M20: ИП Камагин Владимир Юрьевич | N20: МК № 18 от 15.08.2017г. | O20: .Ремонт участка дороги общего пользования местного значения в д.Калгановка по улице Липовая аллея | P20: 96000 | Q20: 96000 | R20: Акт № 18 от 08.09.2017г. | S20: 580 м.кв
B21: Итого по ИП Камагин В.Ю. | D21: =SUM(D20:D20) -> 96000 | E21: =SUM(E20:E20) -> 45000 | F21: =SUM(F20:F20) -> 51000 | G21: =SUM(G20:G20) -> 45000 | H21: =SUM(H20:H20) -> 51000 | I21: 0 | P21: 96000 | Q21: 96000 | S21: =S20 -> 580 м.кв
B23: ВСЕГО по ремонту дорог | D23: =D19+D21 -> 1358535.2 | E23: =E19+E21 -> 1167900 | F23: 190635.2 | G23: 1167900 | H23: 190635.2 | I23: 0 | P23: 1358535.2 | Q23: 1358535.2 | S23: 2618,9 м.кв.
B24: ИТОГО | D24: =D14+D23 -> 1728135.2 | E24: =E14+E23 -> 1471000 | F24: =F14+F23 -> 257135.2 | G24: =G14+G23 -> 1471000 | H24: =H14+H23 -> 241471.62 | I24: =E24-G24 -> 0 | P24: =P14+P23 -> 1712471.62 | Q24: =Q14+Q23 -> 1712471.62
B25: Глава администрации поселения Ленинградской области __________ Н.Е.Кулакова (подпись) (фамилия, инициалы) Главный бухгалтер ___________ Н.А.Пылаева (подпись) (фамилия, инициалы) | N25: Согласовано : председатель комитета по местному самоуправлению, межнациональным и межконфессиональным отношениям Ленинградской области __________ Бурак Л.В.
B27: Исполнитель Куваева Марина Николаевна тел. 8-81372-58-517
B28: ____декабря 2017 года
B30: Согласовано : Комитет финансов Лужского МР ЛО
J31: "_____" декабря 2017г.
B32: ________________ __________________
D53: % | G53: дороги | N53: замена светильников
B54: Всего | C54: =G54+N54 -> 1770699.66 | D54: =D55+D57 -> 100 | G54: =G55+G57 -> 492077.9 | N54: =N55+N57 -> 1278621.76
B55: Обл.бюдж. | C55: =G55+N55 -> 1471000 | D55: =C55/C54*100 -> 83.07450627 | G55: =E14 -> 303100 | I55: =G55/G54*100 -> 61.59593837 | N55: =E23 -> 1167900 | O55: =N55/N54*100 -> 91.34053842
B57: местн.бюд. | C57: =G57+N57 -> 299699.66 | D57: =C57/C54*100 -> 16.92549373 | G57: 188977.9 | I57: =G57/G54*100 -> 38.40406163 | N57: 110721.76 | O57: =N57/N54*100 -> 8.659461575

Sheet Лист1
